Cogmind - Beta 16 @@@ ROGUE MODE // 2025.11.25 @ 21:01:42 Player: SilverswordXV Result: Destroyed by as-75315 with Assembled Blade Performance ------------- Evolutions (0) 0 Regions Visited (2) 400 Robots Destroyed (3) 15 Value Destroyed (87) 87 Prototype IDs (0) 0 Alien Tech Used (0) 0 Bonus (0) 0 TOTAL SCORE: 502 Bonus ------- None Cogmind --------- Core Integrity 0/250 Matter 223/300 Energy 86/100 System Corruption 1% Temperature Cool (0) Movement Core (150) Ox2 Location -10/Mines Parts ------- > --- POWER (1) -------- (None) > --- PROPULSION (2) --- (None) > --- UTILITY (2) ------ Small Storage Unit > --- WEAPON (2) ------- Assault Rifle Assault Rifle > --- INVENTORY (8) ---- Ion Engine Light Treads Compact Wheel EM Pulse Gun Medium Laser Peak State ------------ > --- POWER ------------ Light Ion Engine > --- PROPULSION ------- Wheel Compact Wheel > --- UTILITY ---------- Small Storage Unit Sensor Array > --- WEAPON ----------- Medium Laser Assault Rifle > --- INVENTORY -------- Ion Engine Light Treads EM Pulse Gun Grenade Launcher [Rating: 7] Favorites ----------- Power Light Ion Engine Engine Light Ion Engine Propulsion Compact Wheel Wheel Compact Wheel Utility Small Storage Unit Device Sensor Array Storage Small Storage Unit Weapon Assault Rifle Energy Gun Medium Laser Ballistic Gun Assault Rifle Launcher Grenade Launcher Build | -11 -10 -10 ------- Run | Yrd Mat Min Slots Evolved . | . . . Power . | . . . Propulsion . | . . . Utility . | . . . Weapon . | . . . Parts Attached 10 | 6 3 1 Power 1 | 1 . . Engine 1 | 1 . . Core . | . . . Reactor . | . . . Propulsion 3 | 2 1 . Treads . | . . . Leg . | . . . Wheel 3 | 2 1 . Hover . | . . . Flight . | . . . Utility 2 | 1 1 . Device 1 | . 1 . Storage 1 | 1 . . Processor . | . . . Hackware . | . . . Protection . | . . . Artifact . | . . . Weapon 4 | 2 1 1 Energy Gun 1 | 1 . . Energy Cannon . | . . . Ballistic Gun 2 | 1 1 . Ballistic Cannon . | . . . Launcher 1 | . . 1 Special Weapon . | . . . Impact Weapon . | . . . Slashing Weapon . | . . . Piercing Weapon . | . . . Special Melee Weapon . | . . . Unidentified Prototypes . | . . . Parts Lost 5 | . . 5 Power 1 | . . 1 Propulsion 2 | . . 2 Utility 1 | . . 1 Weapon 1 | . . 1 Highest Loss Streak 5 | . . 5 To Critical Strikes 1 | . . 1 Average Backups 3 | 1 4 6 Power . | . 1 1 Propulsion 1 | . 1 2 Utility . | . . . Weapon 1 | . 2 3 Tool/Special . | . . . Unused Backups 4 | 1 . 3 Power 1 | . . 1 Propulsion 2 | 1 . 1 Utility . | . . . Weapon 1 | . . 1 Tool/Special . | . . . Average Slot Usage (%) 94 | . 96 76 Engine 13 | . 14 9 Wheel 26 | . 28 18 Device 10 | . 10 9 Storage 14 | . 14 14 Energy Gun 9 | . 10 . Ballistic Gun 17 | . 17 18 Peak Build Rating 7 | 6 7 7 Average Rating 6 | 4 6 4 On Entrance 4 | . 6 7 Avg Prop Armor Cover (%) . | . . . Naked Turns . | . . . Heaviest Build 13 | 12 13 13 Greatest Support 26 | 26 26 26 Greatest Overweight (x) 1 | . . 1 Average Overweight (x) . | . . . Largest Inventory Capacity 8 | 8 8 8 Average Capacity 7 | 7 8 8 Most Carried 7 | 3 6 7 Average Carried 4 | 1 4 6 Final Capacity 8 | 8 8 8 Final Carried 6 | 3 6 5 Class Distribution -------------------- 100% | Mutant Dominant Class ---------------- Mutant | -10/Materials Mutant | -10/Mines Resources | -11 -10 -10 ----------- Run | Yrd Mat Min Matter Collected 325 | 209 116 . Remotely . | . . . Salvage Created 218 | . 189 29 Parts 5 | . 5 . Haulers Intercepted . | . . . Recyclers Shooed 1 | . 1 . Parts Field Recycled . | . . . Retrieved Matter . | . . . Parts Self-Destructed . | . . . Prevented . | . . . Parts Restored . | . . . Kills | -11 -10 -10 ------- Run | Yrd Mat Min Combat Hostiles Destroyed 14 | . 2 12 Guns 2 | . 2 . AOE 12 | . . 12 Classes Destroyed 3 | . 2 1 Recycler 1 | . 1 . Grunt 2 | . 2 . Assembled 12 | . . 12 Best Kill Streak 12 | . 2 12 Combat Bots Only 12 | . 2 12 Max Kills in Single Turn 6 | . 1 6 Gunslinging . | . . . Exploded 6 | . . 6 Melee . | . . . Uniques/NPCs Destroyed . | . . . Combat | -11 -10 -10 -------- Run | Yrd Mat Min Hostile Shots Fired 47 | . 13 34 Missed 11 | . 4 7 Hits 36 | . 9 27 Melee 10 | . . 10 Projectile 26 | . 9 17 Critical Strikes 4 | . 1 3 Damage Taken 675 | . 126 549 Core 279 | . 16 263 Absorbed by Shields . | . . . Core Remaining (%) 100 | 100 . . Volleys Fired 21 | . 15 6 Largest 2 | . 2 2 Hottest 70 | . 70 40 Shots Fired 38 | . 30 8 Gun 34 | . 30 4 Cannon . | . . . Launcher 4 | . . 4 Special . | . . . Kinetic 19 | . 15 4 Thermal 15 | . 15 . Explosive 4 | . . 4 Electromagnetic . | . . . Robot Hit Streak 7 | . 7 2 Robot Miss Streak 2 | . 2 2 Penetration Max . | . . . Secondary Targets . | . . . Shots Hit Robots 26 | . 22 4 Core Hits 42 | . 8 34 Critical Kills . | . . . Critical Parts Destroyed . | . . . Critical Strikes . | . . . Melee Attacks . | . . . Impact . | . . . Slashing . | . . . Piercing . | . . . Sneak Attacks . | . . . Combat Hostiles . | . . . Follow-up Attacks . | . . . Damage Inflicted 1081 | . 274 807 Guns 312 | . 274 38 Cannons . | . . . Explosions 769 | . . 769 Melee . | . . . Ramming . | . . . Kinetic 210 | . 172 38 Thermal 102 | . 102 . Explosive 769 | . . 769 Electromagnetic . | . . . Impact . | . . . Slashing . | . . . Piercing . | . . . Highest Corruption 1 | . . 1 Average Corruption 1 | . . 1 Corruption Purged . | . . . Corruption Blocked . | . . . Overload Shots . | . . . Overflow Damage 1 | . . 1 Projectiles . | . . . Explosions 1 | . . 1 Melee . | . . . Knockbacks . | . . . Impact . | . . . Kinetic . | . . . Secondary . | . . . Self-Inflicted Damage 3 | . . 3 Shots 1 | . . 1 Rammed . | . . . Targets Rammed . | . . . Kicked . | . . . Crushed . | . . . Highest Temperature 124 | . 124 . Average Temperature 49 | . 49 . Received Heat Transfer 90 | . 90 . Siege Activations . | . . . Martial Activations . | . . . Shielding Activations . | . . . Robots Disrupted . | . . . Combat Hostiles . | . . . Robots Corrupted . | . . . Combat Hostiles . | . . . Parts Fried . | . . . Impact Corruptions . | . . . Robots Melted . | . . . Combat Hostiles . | . . . Parts Melted . | . . . Heat Transferred 296 | . 296 . Parts Sabotaged . | . . . Parts Stolen . | . . . Parts Stripped . | . . . Power Chain Reactions . | . . . Alert | -11 -10 -10 ------- Run | Yrd Mat Min Maximum Alert Level . | . . . Low Security (%) 100 | 100 100 100 Level 1 . | . . . Level 2 . | . . . Level 3 . | . . . Level 4 . | . . . Level 5 . | . . . High Security . | . . . Max Security . | . . . Peak Influence 50 | . 50 13 Initial 4 | . . 4 Average 10 | . 13 3 Influence Increases 77 | . 62 15 Destroy 0b10 Robot/C 40 | . 40 . Destroy 0b10 Robot/NC 5 | . 5 . Destroy Leader 10 | . 10 . Successful Hack 7 | . 7 . Destroy Structure 15 | . . 15 Influence Decreases 77 | . 50 27 Entered New Map 8 | . . 8 Time Decay 50 | . 50 . Lost Part 19 | . . 19 Squads Dispatched . | . . . Investigation . | . . . Extermination . | . . . Reinforcement . | . . . Assault . | . . . Garrison . | . . . Intercept . | . . . Searches Triggered . | . . . Construction Impeded . | . . . Haulers Reinforced . | . . . Active Scanning Responses . | . . . Cargo Convoy Interrupts . | . . . Stealth | -11 -10 -10 --------- Run | Yrd Mat Min Distress Signals . | . . . Communications Jammed . | . . . Distress Signals . | . . . Times Spotted 24 | . 4 20 Peak Tracking Total 20 | . 3 20 Tactical Retreats . | . . . Traps | -11 -10 -10 ------- Run | Yrd Mat Min Traps Triggered . | . . . Indirectly . | . . . Trap Hack Attempts . | . . . Triggered . | . . . Disarmed . | . . . Reprogrammed . | . . . Reused . | . . . Traps Extracted . | . . . Installed . | . . . Triggered . | . . . Machines | -11 -10 -10 ---------- Run | Yrd Mat Min Machines Disabled . | . . . Max in Single Turn . | . . . Machines Repaired . | . . . Machines Dismantled . | . . . Machines Sabotaged . | . . . Overloaded Fab Kills . | . . . Hacking | -11 -10 -10 --------- Run | Yrd Mat Min Machines Accessed 1 | . 1 . Terminals 1 | . 1 . Fabricators . | . . . Repair Stations . | . . . Recycling Units . | . . . Scanalyzers . | . . . Garrison Access . | . . . Total Hacks 6 | . 6 . Successful 3 | . 3 . Failed 3 | . 3 . Catastrophic . | . . . Database Lockouts . | . . . Manual 2 | . 2 . Terminals 6 | . 6 . Fabricators . | . . . Repair Stations . | . . . Recycling Units . | . . . Scanalyzers . | . . . Garrison Access . | . . . Terminal Hacks 3 | . 3 . Record 1 | . 1 . Part Schematic 1 | . 1 . Zone Layout 1 | . 1 . Fabricator Hacks . | . . . Repair Station Hacks . | . . . Recycling Unit Hacks . | . . . Scanalyzer . | . . . Garrison Access Hacks . | . . . Unauthorized Hacks . | . . . Terminals . | . . . Fabricators . | . . . Repair Stations . | . . . Recycling Units . | . . . Scanalyzers . | . . . Garrison Access . | . . . Data Cores Recovered . | . . . Used . | . . . Hacking Detections 1 | . 1 . Full Trace Events . | . . . Feedback Events . | . . . Feedback Blocked . | . . . Robot Schematics Acquired . | . . . Robots Built . | . . . Authchips . | . . . Time . | . . . Total Robot Build Rating . | . . . Part Schematics Acquired 1 | . 1 . Parts Built . | . . . Authchips . | . . . Time . | . . . Total Part Build Rating . | . . . Part Studies Acquired . | . . . Parts Repaired . | . . . Time . | . . . Parts Recycled . | . . . Recycled Matter . | . . . Retrieved Matter . | . . . Retrieved Components . | . . . Parts Scanalyzed . | . . . Part Schematics Acquired . | . . . Parts Damaged . | . . . Bothacking | -11 -10 -10 ------------ Run | Yrd Mat Min Used RIF Installer . | . . . Robots Hacked . | . . . Non-combat . | . . . Combat . | . . . Robot Hacks Applied . | . . . Relay Couplers Released . | . . . Fabnet Peak Effective % . | . . . Robots Rewired . | . . . Allies Hacked . | . . . Hacks Repelled . | . . . Allies | -11 -10 -10 -------- Run | Yrd Mat Min Total Allies . | . . . Largest Group . | . . . Highest-Rated Group . | . . . Highest-Rated Ally . | . . . Total Orders . | . . . Ally Attacks . | . . . Total Damage . | . . . Kills . | . . . Allies Corrupted . | . . . Allies Melted . | . . . Intel | -11 -10 -10 ------- Run | Yrd Mat Min Active Infowar (turns) 178 | . 171 7 Sensors 178 | . 171 7 Robot Analysis Total . | . . . Derelict Logs Recovered . | . . . Drone Launches . | . . . Drone Recoveries . | . . . Exploration | -11 -10 -10 ------------- Run | Yrd Mat Min Turns Passed 284 | 48 218 18 Spaces Moved 205 | 40 163 2 Core 3 | 3 . . Treads . | . . . Legs . | . . . Wheels 202 | 37 163 2 Hover . | . . . Flight . | . . . Fastest Speed 50 | 50 90 90 Average Speed 89 | 87 90 92 Slowest Speed 100 | 100 90 95 Overloaded Moves . | . . . Propulsion Burnouts . | . . . Robots Hopped . | . . . Potential Cave-ins . | . . . Cave-ins Triggered . | . . . Exploration Rate (%) 12 | 4 27 7 Regions Visited 2 Branch Regions 1 Pre-discovered Areas . | . . . Known Exits Taken . | . . . Unknown Exits Taken 2 | 1 1 . Scrap Searched . | . . . Spaces Dug . | . . . Terrain Destroyed 16 | . . 16 Melee . | . . . Projectile . | . . . AOE 16 | . . 16 Terrain Rammed . | . . . Walls Destroyed . | . . . Machines Disabled . | . . . Actions | -11 -10 -10 --------- Run | Yrd Mat Min Total 266 | 50 203 13 Wait 20 | . 20 . Move 203 | 39 162 2 Hop . | . . . Pick Up 5 | 4 1 . Fast Attach 7 | 6 1 . Attach 4 | . 1 3 Detach 3 | . 1 2 Swap 2 | . 2 . Drop 1 | 1 . . Fire 21 | . 15 6 Melee . | . . . Ram . | . . . Kick . | . . . Crush . | . . . Escape Stasis . | . . . Rewire . | . . . Trap . | . . . Miscellaneous . | . . . Route ------- -11/Scrapyard -10/Materials -10/Mines History --------- Turn | Location | Event 12 | -11/Scrapyard | Discovered new exit (range 15) 49 | -11/Scrapyard | Entered Materials 221 | -10/Materials | Discovered new exit (range 11) 267 | -10/Materials | Entered Mines 268 | -10/Mines | Assembled infested the area 283 | -10/Mines | Core integrity fell below 50% 284 | -10/Mines | Core integrity fell below 20% 285 | -10/Mines | Destroyed by as-75315 with Assembled Blade Last Messages --------------- 00272_ as-42821 destroyed. 00272_ Destroyed Asb. F-torch. 00274_ Com. Wheel destroyed. 00274_ Sensor Array destroyed. 00274_ System corrupted by crushing effect (+1). 00274_ Knocked back. 00275_ Critical hit (Destroy). 00275_ Wheel destroyed. 00275_ as-06875 destroyed. 00275_ as-91584 destroyed. 00275_ Destroyed Asb. Hover Unit. 00277_ Lgt. Ion Engine destroyed. 00277_ as-81074 destroyed. 00277_ as-88340 destroyed. 00277_ as-99011 destroyed. 00277_ as-57897 destroyed. 00277_ as-65813 destroyed. [Achievement: Quick And Dirty] 00277_ as-53192 destroyed. 00279_ Grenade Launcher destroyed. Map ----- +----------------------------------------------------+ | | | | | | | | | | | | | | | | | ??????????????????????????????????? | | ??????????????????????????????????? | | ??????????????????????????????????? | | ??????????????????????????????????? | | ??????????????????????????????????? | | ??????????????????????????????????? | | ??????????????????????????????????? | | ??????????????????????????????????? | | ??????????????????????????????????? | | ??????????????????????????????????? | | ??????????####????????????????????? | | ?????????## ##???####????????????? | | ????????## ### #????????????? | | ????????# #! #?????????? | | ????????# % < #?????????? | | ????????# a #????????? | | ????????#aaa % a #???????? | | ????????##@ a ???????? | | ?????????# ### ???????? | | ????????? # #??????????????? | | ????????# #### #?????????????? | | ???????? #??? #?????????????? | | ??????? ##???? ##?????????????? | | ??????? #??????##??????????????? | | ??????+ #??????????????????????? | | ??????+ ??????????????????????? | | ??????# ??????????????????????? | | ??????# ??????????????????????? | | ??????## #??????????????????????? | | ??????? #???????????????????????? | | ??????? #????????????????????????? | | ??????? #?????????????????????????? | | ??????????????????????????????????? | | ??????????????????????????????????? | | ??????????????????????????????????? | | ??????????????????????????????????? | | ??????????????????????????????????? | | ??????????????????????????????????? | | ??????????????????????????????????? | | ??????????????????????????????????? | | ??????????????????????????????????? | | ??????????????????????????????????? | +----------------------------------------------------+ Best States ------------- Heat Dissipation 25 Energy Generation 10 Energy Capacity 125 Matter Stores 300 Matter Capacity 300 Sight Range 16 Robot Scan Range 14 Terrain Scan Density 10 Evasion (%) 42 Item Schematics ----------------- Med. Storage Unit | -10/Materials | Hacked Robot Schematics ------------------ None Fabricated ------------ Nothing Repaired ---------- Nothing Studied --------- None Alien Tech Used ----------------- None Achievements -------------- Quick And Dirty Challenges ------------ None Game ------ Seed ModifiedAntimatterBoregun Manual? 0 Play Time 00:05:08 Cumulative 31.7 hours Start 2025.11.25 @ 20:57:28 End 2025.11.25 @ 21:01:42 Sessions 1 Manual Loads 0 Difficulty Rogue Special Mode None Game No. 35 Rogue 35 Adventurer 0 Explorer 0 Win Type - Total 0 Types 0/0/0/0/0/0/0/0/0/0 Lore% 16 Gallery% 23 Achievement% 21 Wizard Run 0 Options --------- Layout 1 ASCII 0 Keyboard 1 Movement Numpad Keybinds 0 Fullscreen 1 Font 24/Smallcaps Map View 50x35 Zoom Use 0% Tactical HUD 1 Map Filters NONE Filters NONE Steam 1 RUN: 03a5fa1d-a38d-43fc-bc43-e51412846277